Cogmind - Beta 16 @@@ ROGUE MODE // 2025.12.13 @ 18:11:10 Player: The Overplayer Result: Destroyed by S-10 Pest with Light Assault Rifle Performance ------------- Evolutions (0) 0 Regions Visited (2) 400 Robots Destroyed (28) 140 Value Destroyed (546) 546 Prototype IDs (0) 0 Alien Tech Used (0) 0 Bonus (0) 0 TOTAL SCORE: 1086 Bonus ------- None Cogmind --------- Core Integrity 0/250 Matter 222/300 Energy 121/125 System Corruption 3% Temperature Cool (0) Movement Walking (190) Ox1 Location -10/Subcaves Parts ------- > --- POWER (1) -------- Light Ion Engine > --- PROPULSION (2) --- Aluminum Leg > --- UTILITY (2) ------ Medium Storage Unit > --- WEAPON (2) ------- Light Assault Rifle Battle Cannon > --- INVENTORY (10) --- Medium Storage Unit Sensor Array Signal Interpreter Seismic Detector Scrap Shield Mining Laser Scrap Shield Fragment (48) Peak State ------------ > --- POWER ------------ Light Ion Engine > --- PROPULSION ------- Aluminum Leg Aluminum Leg > --- UTILITY ---------- Medium Storage Unit Improved Terrain Scanner > --- WEAPON ----------- Medium Laser Light Assault Rifle > --- INVENTORY -------- Aluminum Leg Small Storage Unit Medium Storage Unit Large Storage Unit Sensor Array Signal Interpreter Seismic Detector ECM Suite Light Assault Rifle Mining Laser [Rating: 10] Favorites ----------- Power Light Ion Engine Engine Light Ion Engine Propulsion Aluminum Leg Leg Aluminum Leg Wheel Subdweller Monowheel Utility Medium Storage Unit Device Improved Terrain Scanner Storage Medium Storage Unit Weapon Light Assault Rifle Energy Gun Medium Laser Ballistic Gun Light Assault Rifle Ballistic Cannon Battle Cannon Special Weapon Mining Laser Build | -11 -10 -10 ------- Run | Yrd Mat Sub Slots Evolved . | . . . Power . | . . . Propulsion . | . . . Utility . | . . . Weapon . | . . . Parts Attached 27 | 7 14 6 Power 3 | 1 1 1 Engine 3 | 1 1 1 Core . | . . . Reactor . | . . . Propulsion 12 | 2 6 4 Treads . | . . . Leg 11 | 2 6 3 Wheel 1 | . . 1 Hover . | . . . Flight . | . . . Utility 5 | 2 3 . Device 2 | 1 1 . Storage 3 | 1 2 . Processor . | . . . Hackware . | . . . Protection . | . . . Artifact . | . . . Weapon 7 | 2 4 1 Energy Gun 2 | 1 1 . Energy Cannon . | . . . Ballistic Gun 3 | 1 2 . Ballistic Cannon 1 | . . 1 Launcher . | . . . Special Weapon 1 | . 1 . Impact Weapon . | . . . Slashing Weapon . | . . . Piercing Weapon . | . . . Special Melee Weapon . | . . . Unidentified Prototypes . | . . . Parts Lost 8 | . 3 5 Power . | . . . Propulsion 4 | . 1 3 Utility 1 | . . 1 Weapon 3 | . 2 1 Highest Loss Streak 4 | . 2 4 To Critical Strikes . | . . . Average Backups 6 | . 7 7 Power . | . . . Propulsion . | . 1 . Utility 4 | . 5 5 Weapon 1 | . 1 1 Tool/Special . | . . . Unused Backups 5 | . 1 4 Power . | . . . Propulsion . | . . . Utility 5 | . 1 4 Weapon . | . . . Tool/Special . | . . . Average Slot Usage (%) 94 | . 98 86 Engine 14 | . 14 14 Leg 25 | . 27 20 Wheel 1 | . . 3 Device 11 | . 14 5 Storage 14 | . 14 14 Energy Gun 8 | . 9 6 Ballistic Gun 15 | . 16 14 Ballistic Cannon 1 | . . 6 Peak Build Rating 10 | 7 10 10 Average Rating 8 | 6 9 8 On Entrance 5 | . 7 10 Avg Prop Armor Cover (%) 9 | . . 9 Naked Turns . | . . . Heaviest Build 20 | 15 20 17 Greatest Support 20 | 20 20 20 Greatest Overweight (x) 5 | . 1 5 Average Overweight (x) . | . . . Largest Inventory Capacity 10 | 8 10 10 Average Capacity 9 | 7 9 10 Most Carried 10 | 2 10 10 Average Carried 6 | . 7 8 Final Capacity 10 | 8 10 10 Final Carried 10 | 2 10 8 Class Distribution -------------------- 67% | Mutant 32% | Scavenger-Mutant Dominant Class ---------------- Scavenger-Mutant | -10/Materials Mutant | -10/Subcaves Resources | -11 -10 -10 ----------- Run | Yrd Mat Sub Matter Collected 583 | 270 237 76 Remotely . | . . . Salvage Created 742 | 183 498 61 Parts 47 | 14 30 3 Haulers Intercepted 1 | . 1 . Recyclers Shooed . | . . . Parts Field Recycled . | . . . Retrieved Matter . | . . . Parts Self-Destructed 2 | . . 2 Prevented . | . . . Parts Restored . | . . . Kills | -11 -10 -10 ------- Run | Yrd Mat Sub Combat Hostiles Destroyed 15 | . 12 3 Guns 12 | . 11 1 Cannons 2 | . . 2 AOE 1 | . 1 . Classes Destroyed 9 | 3 5 1 Worker 2 | 1 1 . Tunneler 5 | 5 . . Hauler 1 | . 1 . Recycler 1 | 1 . . Operator 1 | . 1 . Watcher 3 | . 3 . Swarmer 6 | . 6 . Grunt 6 | . 6 . Subdweller 3 | . . 3 Best Kill Streak 3 | 3 3 2 Combat Bots Only 3 | . 3 2 Max Kills in Single Turn 1 | 1 1 1 Gunslinging . | . . . Exploded 1 | . 1 . Melee . | . . . Uniques/NPCs Destroyed . | . . . Combat | -11 -10 -10 -------- Run | Yrd Mat Sub Hostile Shots Fired 102 | . 57 45 Missed 27 | . 15 12 Hits 75 | . 42 33 Projectile 75 | . 42 33 AOE 6 | . . 6 Damage Taken 1421 | . 579 842 Core 256 | . 67 189 Absorbed by Shields . | . . . Core Remaining (%) 100 | 100 . . Volleys Fired 95 | 27 46 22 Largest 2 | 1 2 2 Hottest 100 | 50 100 70 Shots Fired 160 | 27 89 44 Gun 150 | 27 88 35 Cannon 9 | . . 9 Launcher . | . . . Special 1 | . 1 . Kinetic 90 | . 59 31 Thermal 70 | 27 30 13 Explosive . | . . . Electromagnetic . | . . . Robot Hit Streak 14 | 5 10 14 Robot Miss Streak 4 | 4 3 2 Penetration Max . | . . . Secondary Targets 3 | . 3 . Max Gunslinging Chain 1 | . 1 . Shots Hit Robots 107 | 14 58 35 Core Hits 44 | 8 28 8 Critical Kills . | . . . Critical Parts Destroyed . | . . . Critical Strikes 3 | 1 1 1 Burn 3 | 1 1 1 Melee Attacks . | . . . Impact . | . . . Slashing . | . . . Piercing . | . . . Sneak Attacks . | . . . Combat Hostiles . | . . . Follow-up Attacks . | . . . Damage Inflicted 1273 | 180 748 345 Guns 1029 | 180 648 201 Cannons 144 | . . 144 Explosions 100 | . 100 . Melee . | . . . Ramming . | . . . Kinetic 659 | . 401 258 Thermal 514 | 180 247 87 Explosive 100 | . 100 . Electromagnetic . | . . . Impact . | . . . Slashing . | . . . Piercing . | . . . Highest Corruption 3 | . 3 3 Average Corruption 2 | . 2 3 Corruption Purged . | . . . Corruption Blocked . | . . . Effects 15 | . 3 12 Message Errors 4 | . 2 2 Matter Fused 3 | . . 3 Heat Flow Errors 1 | . . 1 Parts Rejected 1 | . . 1 Data Loss (minor) 4 | . 1 3 Data Loss (major) 1 | . . 1 Alerts 1 | . . 1 Overload Shots . | . . . Overflow Damage 15 | . 15 . Projectiles . | . . . Explosions 15 | . 15 . Melee . | . . . Knockbacks 1 | . . 1 Impact . | . . . Kinetic 1 | . . 1 Secondary . | . . . Self-Inflicted Damage 147 | . 147 . Shots 2 | . 2 . Rammed . | . . . Targets Rammed . | . . . Kicked . | . . . Crushed . | . . . Highest Temperature 139 | 60 136 139 Average Temperature 32 | 16 40 79 Received Heat Transfer 225 | . 177 48 Siege Activations . | . . . Martial Activations . | . . . Shielding Activations . | . . . Robots Disrupted . | . . . Combat Hostiles . | . . . Robots Corrupted . | . . . Combat Hostiles . | . . . Parts Fried . | . . . Impact Corruptions . | . . . Robots Melted . | . . . Combat Hostiles . | . . . Parts Melted 4 | 2 2 . Heat Transferred 1739 | 592 814 333 Parts Sabotaged . | . . . Parts Stolen . | . . . Parts Stripped . | . . . Power Chain Reactions . | . . . Alert | -11 -10 -10 ------- Run | Yrd Mat Sub Maximum Alert Level 1 | . 1 . Low Security (%) 75 | 100 70 . Level 1 24 | . 29 . Level 2 . | . . . Level 3 . | . . . Level 4 . | . . . Level 5 . | . . . High Security . | . . . Max Security . | . . . Peak Influence 279 | 10 279 . Initial . | . . . Average 124 | 1 152 . Influence Increases 551 | 35 516 . Destroy 0b10 Robot/C 240 | . 240 . Destroy 0b10 Robot/NC 65 | 35 30 . Destroy Leader 68 | . 68 . Successful Hack 21 | . 21 . Disable Machine 60 | . 60 . Destroy Structure 37 | . 37 . Lose Combat Pursuer 60 | . 60 . Influence Decreases 551 | 35 374 142 Entered New Map 69 | . . 69 Time Decay 452 | 35 344 73 Lost Part 30 | . 30 . Squads Dispatched 3 | . 3 . Investigation 1 | . 1 . Extermination . | . . . Reinforcement 2 | . 2 . Assault . | . . . Garrison . | . . . Intercept . | . . . Searches Triggered . | . . . Construction Impeded . | . . . Haulers Reinforced . | . . . Active Scanning Responses . | . . . Cargo Convoy Interrupts . | . . . Stealth | -11 -10 -10 --------- Run | Yrd Mat Sub Distress Signals . | . . . Communications Jammed . | . . . Distress Signals . | . . . Times Spotted 31 | . 24 7 Peak Tracking Total 6 | . 6 3 Tactical Retreats 4 | . 3 1 Traps | -11 -10 -10 ------- Run | Yrd Mat Sub Traps Triggered 4 | . 4 . Indirectly . | . . . Trap Hack Attempts . | . . . Triggered . | . . . Disarmed . | . . . Reprogrammed . | . . . Reused . | . . . Traps Extracted . | . . . Installed . | . . . Triggered . | . . . Machines | -11 -10 -10 ---------- Run | Yrd Mat Sub Machines Disabled 4 | . 4 . Max in Single Turn 3 | . 3 . Machines Repaired . | . . . Machines Dismantled . | . . . Machines Sabotaged . | . . . Overloaded Fab Kills . | . . . Hacking | -11 -10 -10 --------- Run | Yrd Mat Sub Machines Accessed 6 | . 6 . Terminals 5 | . 5 . Fabricators . | . . . Repair Stations . | . . . Recycling Units 1 | . 1 . Scanalyzers . | . . . Garrison Access . | . . . Total Hacks 16 | . 16 . Successful 8 | . 8 . Failed 8 | . 8 . Catastrophic . | . . . Database Lockouts . | . . . Manual 9 | . 9 . Terminals 15 | . 15 . Fabricators . | . . . Repair Stations . | . . . Recycling Units 1 | . 1 . Scanalyzers . | . . . Garrison Access . | . . . Terminal Hacks 5 | . 5 . Record 1 | . 1 . Terminal Index 1 | . 1 . Hauler Manifests 1 | . 1 . Registered Components 1 | . 1 . Zone Layout 1 | . 1 . Fabricator Hacks . | . . . Repair Station Hacks . | . . . Recycling Unit Hacks 1 | . 1 . Report Inventory 1 | . 1 . Scanalyzer . | . . . Garrison Access Hacks . | . . . Unauthorized Hacks 2 | . 2 . Terminals 2 | . 2 . Botnet 2 | . 2 . Fabricators . | . . . Repair Stations . | . . . Recycling Units . | . . . Scanalyzers . | . . . Garrison Access . | . . . Data Cores Recovered . | . . . Used . | . . . Hacking Detections 5 | . 5 . Full Trace Events . | . . . Feedback Events . | . . . Feedback Blocked . | . . . Robot Schematics Acquired . | . . . Robots Built . | . . . Authchips . | . . . Time . | . . . Total Robot Build Rating . | . . . Part Schematics Acquired . | . . . Parts Built . | . . . Authchips . | . . . Time . | . . . Total Part Build Rating . | . . . Part Studies Acquired . | . . . Parts Repaired . | . . . Time . | . . . Parts Recycled . | . . . Recycled Matter . | . . . Retrieved Matter . | . . . Retrieved Components . | . . . Parts Scanalyzed . | . . . Part Schematics Acquired . | . . . Parts Damaged . | . . . Bothacking | -11 -10 -10 ------------ Run | Yrd Mat Sub Used RIF Installer . | . . . Robots Hacked . | . . . Non-combat . | . . . Combat . | . . . Robot Hacks Applied . | . . . Relay Couplers Released . | . . . Fabnet Peak Effective % . | . . . Robots Rewired . | . . . Allies Hacked . | . . . Hacks Repelled . | . . . Allies | -11 -10 -10 -------- Run | Yrd Mat Sub Total Allies . | . . . Largest Group . | . . . Highest-Rated Group . | . . . Highest-Rated Ally . | . . . Total Orders . | . . . Ally Attacks . | . . . Total Damage . | . . . Kills . | . . . Allies Corrupted . | . . . Allies Melted . | . . . Intel | -11 -10 -10 ------- Run | Yrd Mat Sub Active Infowar (turns) 1276 | 149 947 180 Terrain 1127 | . 947 180 Seismic 149 | 149 . . Robot Analysis Total . | . . . Derelict Logs Recovered 1 | . . 1 Drone Launches . | . . . Drone Recoveries . | . . . Exploration | -11 -10 -10 ------------- Run | Yrd Mat Sub Turns Passed 1602 | 213 947 442 Spaces Moved 1010 | 126 607 277 Core 15 | 6 . 9 Treads . | . . . Legs 904 | 120 607 177 Wheels 91 | . . 91 Hover . | . . . Flight . | . . . Fastest Speed 50 | 50 120 110 Average Speed 122 | 116 120 128 Slowest Speed 300 | 120 190 300 Overloaded Moves . | . . . Propulsion Burnouts . | . . . Robots Hopped . | . . . Potential Cave-ins . | . . . Cave-ins Triggered . | . . . Exploration Rate (%) 37 | 5 84 22 Regions Visited 2 Branch Regions 1 Pre-discovered Areas . | . . . Known Exits Taken . | . . . Unknown Exits Taken 2 | 1 1 . Scrap Searched 3 | . . 3 Spaces Dug . | . . . Terrain Destroyed 45 | . 45 . Melee . | . . . Projectile . | . . . AOE 45 | . 45 . Terrain Rammed . | . . . Walls Destroyed . | . . . Machines Disabled . | . . . Actions | -11 -10 -10 --------- Run | Yrd Mat Sub Total 1227 | 161 740 326 Wait 67 | . 54 13 Move 1008 | 125 606 277 Hop . | . . . Pick Up 12 | 2 8 2 Fast Attach 14 | 7 3 4 Attach 3 | . 1 2 Detach 1 | . 1 . Swap 13 | . 12 1 Drop 14 | . 9 5 Fire 95 | 27 46 22 Melee . | . . . Ram . | . . . Kick . | . . . Crush . | . . . Escape Stasis . | . . . Rewire . | . . . Trap . | . . . Miscellaneous . | . . . Route ------- -11/Scrapyard -10/Materials (discovered 4 exits: [*Mat x2] / [*Min] / [*Sub]) -10/Subcaves (discovered 1 exit: [*Mat]) History --------- Turn | Location | Event 5 | -11/Scrapyard | Discovered new exit (range 15) 214 | -11/Scrapyard | Entered Materials 311 | -10/Materials | Build established: Mutant 388 | -10/Materials | Discovered new exit (range 16) 507 | -10/Materials | Discovered new exit (range 12) 742 | -10/Materials | Discovered new exit (range 16) 856 | -10/Materials | Build established: Scavenger-Mutant 1153 | -10/Materials | Discovered new exit (range 4) 1161 | -10/Materials | Entered Subcaves 1162 | -10/Subcaves | Approached by a straggling Scientist 1211 | -10/Subcaves | Disturbed a concealed Subdweller 1236 | -10/Subcaves | Core integrity fell below 50% 1386 | -10/Subcaves | Build established: Mutant 1399 | -10/Subcaves | Lost 4 parts (2n1u1w) 1448 | -10/Subcaves | Discovered new exit (range 15) 1496 | -10/Subcaves | Learned 8 Materials zone layouts 1516 | -10/Subcaves | Core integrity fell below 20% 1603 | -10/Subcaves | Destroyed by S-10 Pest with Light Assault Rifle Last Messages --------------- 01496_ Acquired derelict log, extracted data. Data stored: Materials zone layouts (x8). 01497_ 3K-I4V(z): "She is not going to be happy we haven't found any suitable candidates yet." 01498_ KB-PMT(u) tweaks Twisted Machinery. 01514_ U1-KRC(R) knocked back. 01517_ Aluminum Leg destroyed. 01517_ U1-KRC(R) destroyed. 01522_ Sub. Monowheel shoots sparks and powers down. 01523_ Dropped Broken Sub. Monowheel. 01523_ Acquired 4 matter. 01526_ Acquired 18 matter. 01535_ SL-4P0(R) destroyed. 01550_ Acquired 3 matter. 01553_ Acquired 8 matter. 01559_ Acquired Aluminum Leg. 01567_ System corrupted: Matter fused (-7). 01602_ System corrupted: Matter fused (-10). [Achievement: Back For More] Map ----- +----------------------------------------------------+ | ?????????????????????????????????????????????????? | | ?????????????????????????????????????????????????? | | ?????????????????????????????????????????????????? | | ?????????????????????????????????????????????????? | | ?????????????????????????????????????????????????? | | ?????????????????????????????????????????????????? | | ?????????????????????????????????????????????????? | | ?????????????????????????????????????????????????? | | ?????????????????????????????????????????????????? | | ?????????? ??????????????????????????????????????? | | ?????????? #?????????????????????????????????????? | | ?????????? #?????????????????????????????????????? | | ?????????? %???# ????????????????????????????????? | | ????????## ??? ?????????????????? ??????????????? | | ???????## ### #????????????????? ??????????????? | | ###????# # ?????????????????? ??????????????? | | # #????? ?????##?? ???????? ???????????????? | | ##???? #????# ## ??????? #???????????????? | | ?????# #???? # ?????? #???????????????? | | #?????# #???? ?????? ###??# ????????? | | ####### #???## ?????? ## ????????? | | ##"""" ##### ???????? ????????? | | "" " #???????? ???????? | | < ## #???###### s ???????? | | # ## #???## s ???????? | | # """ ## ##### @ s% " ?????????? | | # """ ## ## "" ?????????? | | ##### """ ????????????? | | #??## """ ????????????? | | ##?## ## " """ ????????????? | | ##??# ##### ####### """""""?????????????? | | ##?## ###?# ##????## """"""?????????????? | | ## #" ""### ###?##? "" ###"?????????????? | | ?## % " ### ## ## ##"" #????????????????? | | ??# #" " ### " # " "#????????????????? | | ??# #####" " """ "" "#????????????????? | | ??###??#" [ = ""# "" ???????????????? | | ???????##" & ""#### " ????????????????? | | ????????# [ "##??? ??????????????????? | | ???????#"""""# " "#???????????????????????? | | ???????#########" "" #??????????????????????? | | ???????????????# """ " #??????????????????????? | | ???????????????#" "###### #??????????????????????? | | ???????????????#####?????##??????????????????????? | | ?????????????????????????????????????????????????? | | ?????????????????????????????????????????????????? | | ?????????????????????????????????????????????????? | | ?????????????????????????????????????????????????? | | ?????????????????????????????????????????????????? | | ?????????????????????????????????????????????????? | +----------------------------------------------------+ Best States ------------- Heat Dissipation 25 Energy Generation 10 Energy Capacity 250 Matter Stores 300 Matter Capacity 300 Sight Range 16 Terrain Scan Range 16 Terrain Scan Density 10 Evasion (%) 55 Item Schematics ----------------- None Robot Schematics ------------------ None Fabricated ------------ Nothing Repaired ---------- Nothing Studied --------- None Alien Tech Used ----------------- None Achievements -------------- Back For More Challenges ------------ None Game ------ Seed AdvancedPartitionManipulator Manual? 0 Play Time 00:12:43 Cumulative 50.0 hours Start 2025.12.13 @ 17:58:19 End 2025.12.13 @ 18:11:10 Sessions 1 Manual Loads 0 Difficulty Rogue Special Mode None Game No. 51 Rogue 51 Adventurer 0 Explorer 0 Win Type - Total 0 Types 0/0/0/0/0/0/0/0/0/0 Lore% 22 Gallery% 41 Achievement% 32 Wizard Run 0 Options --------- Layout 1 ASCII 0 Keyboard 0 Movement Mouse Keybinds 0 Fullscreen 1 Font 24/Smallcaps Map View 50x35 Zoom Use 0% Tactical HUD 1 Map Filters NONE Filters NONE Steam 1 RUN: bfa1578b-8f27-4e34-b30f-7576e06fa0e7